fUST/lending_fUST_20240510
["ID","MTS","AMOUNT","RATE_DAILY","PERIOD"]
[326749598,1715301033194,-400.95628371,0.00066301,120]
[326749600,1715301033203,-628.06,0.00066575,120]
[326749601,1715301033212,-628.06,0.00066849,120]
[326749603,1715301033221,-494.96854936,0.00067123,120]
[326749605,1715301033231,-133.09145064,0.00067123,120]
[326749606,1715301033241,-628.06,0.00067397,120]
[326749608,1715301033251,-628.06,0.00067671,120]
[326749610,1715301033260,-124.57506583,0.00067945,120]
[326749653,1715301038609,-503.48493417,0.00067945,120]
[326749655,1715301038618,-628.06,0.00068219,120]
[326749657,1715301038628,-500.0,0.00068493,120]
[326749659,1715301038637,-628.06,0.00068493,120]
[326749661,1715301038646,-628.06,0.00068767,120]
[326749663,1715301038655,-628.06,0.00069041,120]
[326749665,1715301038664,-628.06,0.00069315,120]
[326749667,1715301038673,-628.06,0.00069589,120]
[326749669,1715301038683,-628.06,0.00069863,120]
[326749671,1715301038692,-628.06,0.00070136,120]
[326749673,1715301038701,-628.06,0.0007041,120]
[326749675,1715301038710,-628.06,0.00070684,120]
[326749677,1715301038718,-628.06,0.00070958,120]
[326749679,1715301038727,-616.48447276,0.00071232,120]
[326749681,1715301038736,-628.06,0.00071232,120]
[326749683,1715301038746,-628.06,0.00071506,120]
[326749685,1715301038755,-628.06,0.0007178,120]
[326749687,1715301038763,-628.25,0.00072054,120]
[326749688,1715301038772,-166.666666,0.00076712,120]
[326749690,1715301038782,-150.0,0.00076779,2]
[326749692,1715301038791,-150.0,0.00077579,2]
[326749694,1715301038800,-868.0,0.000779,120]
[326749696,1715301038809,-868.0,0.000779,120]
[326749698,1715301038818,-868.0,0.000779,120]
[326749700,1715301038827,-868.0,0.000779,120]
[326749702,1715301038836,-868.0,0.000779,120]
[326749704,1715301038845,-868.0,0.000779,120]
[326749706,1715301038854,-868.0,0.000779,120]
[326749708,1715301038863,-868.0,0.000779,120]
[326749710,1715301038872,-469.918,0.000779,120]
[326749712,1715301038881,-186.14165863,0.0007791,2]
[326749714,1715301038890,-370.79,0.0007799,30]
[326749716,1715301038899,-15498.59215134,0.00078,120]
[326749718,1715301038911,-6289.6,0.00078,120]
[326749757,1715301040833,-326.44479989,0.00078,120]
[326749841,1715301555132,1348.39587866,9.999e-05,2]
[326749842,1715301669019,-176.68083,0.0001589,2]
[326749894,1715302005149,-158.65229746,0.00019998,2]
[326749895,1715302213174,1578.94023336,9.999e-05,2]
[326749896,1715302227589,1493.98281956,9.999e-05,2]
[326749931,1715302231891,-564.5564936,0.00018896,2]
[326749933,1715302231901,-12.02422951,0.00018897,2]
[326749936,1715302231933,-1336.37164915,0.00018897,2]
[326749938,1715302231942,-150.0,0.000189,2]
[326749939,1715302231952,-2237.88554839,0.00019998,2]
[326749941,1715302231962,-200.0,0.0002,2]
[326749943,1715302231972,-255.714577,0.00020451,2]
[326749945,1715302231982,-1558.94506613,0.00020912,2]
[326749946,1715302231991,-150.0,0.000239,2]
[326749948,1715302232000,-150.0525,0.00025115,2]
[326749950,1715302232012,-643.86055605,0.00027002,2]
[326749951,1715302232023,-186.81844012,0.00027009,2]
[326749952,1715302232032,-641.61611903,0.0002701,2]
[326749953,1715302232041,-221.16623315,0.00028,2]
[326749954,1715302232050,-380.81278732,0.0003,10]
[326749955,1715302232059,-150.0525,0.00033248,7]
[326749956,1715302232068,-256.62670552,0.0003624,2]
[326749957,1715302232078,-169.40840842,0.00038974,2]
[326749958,1715302232087,-524.19372129,0.00038974,2]
[326749959,1715302232098,-154.7215013,0.0003907,4]
[326749960,1715302232107,-154.73694719,0.00039071,4]
[326749961,1715302232116,-15710.72290409,0.00039073,15]
[326749962,1715302232125,-278.70136116,0.00039074,30]
[326749963,1715302232134,-522.75724561,0.00039074,120]
[326749964,1715302232145,-151.01633893,0.00039074,10]
[326749965,1715302232155,-297.06560481,0.00039074,120]
[326749966,1715302232164,-8852.20799566,0.00039074,120]
[326749967,1715302232173,-8649.17905178,0.00039074,2]
[326749968,1715302232185,-5725.38686031,0.00039074,2]
[326750047,1715302240033,-186.81844012,0.00027,2]
[326750049,1715302240043,-233.56959578,0.00039072,4]
[326750093,1715302243025,-371.08972042,0.00039072,4]
[326750094,1715302243034,-300.35998505,0.00039072,4]
[326750095,1715302243043,-835.05029453,0.00039074,2]
[326750118,1715302259778,194.13169488,9.999e-05,2]
[326750120,1715302285609,527.63757821,9.999e-05,2]
[326750121,1715302622153,176.730294,0.0001589,2]
[326750123,1715303194100,-899.28623231,0.00020098,2]
[326750127,1715303239845,180.666199,0.0001589,2]
[326750164,1715303349082,564.5564936,9.999e-05,2]
[326750205,1715303432181,-516.321286,0.00019765,2]
[326750208,1715303432195,-48.2352076,0.00019765,2]
[326750210,1715303432204,-1301.8204998,0.00019766,2]
[326750212,1715303432213,-2932.42878719,0.00020098,2]
[326750214,1715303432223,-24900.0,0.00020391,2]
[326750215,1715303432232,-221.990326,0.00020847,2]
[326750217,1715303432241,-28251.77082738,0.00020913,2]
[326750220,1715303432252,-1321.88224772,0.00020913,2]
[326750301,1715303438289,-1705.05974779,0.00020913,2]
[326750302,1715303438357,-514.94361932,0.00020913,2]
[326750348,1715303440578,-414.8836041,0.00020913,2]
[326750350,1715303441797,-422.44498482,0.00020913,2]
[326750369,1715303443752,-2.21740981,0.00020913,2]
[326750396,1715303881690,165.2488435,0.0001589,2]
[326750397,1715304108088,-415.0,0.00019999,2]
[326750400,1715304352658,176.68083,0.0001589,2]
[326750465,1715304638517,-4109.16328342,0.00019791,2]
[326750528,1715304643095,-1904.43077128,0.00019791,2]
[326750532,1715304643106,-496.210985,0.00019911,2]
[326750535,1715304643116,-149.5564936,0.00019999,2]
[326750547,1715304643125,-11084.4,0.0002,2]
[326750548,1715304643206,-671.43328086,0.0002,2]
[326750549,1715304643216,-18349.77904721,0.0002,2]
[326750550,1715304643225,-166.666666,0.00021918,2]
[326750551,1715304643235,-166.666666,0.00022773,2]
[326750552,1715304643244,-166.666666,0.00023627,2]
[326750553,1715304643253,-166.666666,0.00024482,2]
[326750554,1715304643263,-200.0,0.00024658,15]
[326750555,1715304643272,-400.02877114,0.00025,2]
[326750556,1715304643281,-167.07450764,0.00025,2]
[326750557,1715304643290,-154.76798259,0.00025,2]
[326750558,1715304643300,-203.9324946,0.00025348,7]
[326750559,1715304643309,-318.22221353,0.00025448,2]
[326750560,1715304643335,-304.71368244,0.00025448,2]
[326750572,1715304644024,-430.34810678,0.00025448,2]
[326750574,1715304644033,-186.85286601,0.00027999,2]
[326750576,1715304644042,-221.16623315,0.00028,2]
[326750578,1715304644052,-365.81491969,0.00029867,2]
[326750580,1715304644063,-130.39606531,0.00029867,2]
[326750581,1715304644073,-173.394,0.00030587,7]
[326750582,1715304644083,-150.0,0.0003093,5]
[326750583,1715304644092,-802.08990641,0.00031,120]
[326750584,1715304644102,-173.394,0.00031548,7]
[326750585,1715304644111,-173.394,0.00032988,7]
[326750586,1715304644120,-176.730294,0.0003319,2]
[326750587,1715304644129,-173.394,0.00033988,7]
[326750588,1715304644139,-173.394,0.00034622,7]
[326750589,1715304644148,-173.394,0.00036461,7]
[326750590,1715304644158,-834.71973428,0.00036728,4]
[326750591,1715304644170,-358.13169284,0.00036728,4]
[326750614,1715304739205,154.7215013,9.999e-05,2]
[326750616,1715304828066,1465.79568205,0.0001,2]
[326750617,1715305035299,4060.7940567,0.00024,60]
[326750619,1715305203266,168.5396181,0.0001589,2]
[326750623,1715305666142,174.164322,0.0001589,2]
[326750632,1715305833557,-154.7215013,0.00020909,2]
[326750633,1715305833567,-564.55666031,0.0002091,2]
[326750634,1715305833576,-10372.57822171,0.00020913,2]
[326750635,1715305833586,-24900.0,0.00020978,2]
[326750637,1715305833596,-150.0,0.000219,2]
[326750638,1715305833605,-167.372145,0.00021918,2]
[326750639,1715305833613,-167.372145,0.00022559,2]
[326750640,1715305833623,-714.97924015,0.00023,2]
[326750641,1715305833632,-167.372145,0.000232,2]
[326750642,1715305833641,-167.372145,0.00023841,2]
[326750643,1715305833651,-167.372145,0.00024482,2]
[326750644,1715305833667,-154.62584565,0.00024899,2]
[326750645,1715305833676,-1046.67822942,0.00025,2]
[326750646,1715305833685,-400.10978683,0.00025,2]
[326750647,1715305833694,-167.10326178,0.00025203,2]
[326750648,1715305833704,-3000.0,0.00026421,2]
[326750649,1715305833713,-186.85286601,0.0002984,2]
[326750650,1715305833722,-150.0,0.00029841,5]
[326750651,1715305833731,-154.62584565,0.00032245,7]
[326750652,1715305833741,-154.62584565,0.00032616,7]
[326750653,1715305833751,-171.82566393,0.000329,2]
[326750654,1715305833760,-154.62584565,0.00033848,7]
[326750655,1715305833769,-2565.34387233,0.00034309,2]
[326750656,1715305833814,-378.63902509,0.00034309,2]
[326750699,1715305838674,-258.89243828,0.00034309,2]
[326750709,1715305838907,-1295.44842742,0.00034309,2]
[326750713,1715305841833,-1510.40859448,0.00034309,2]
[326750714,1715305841843,-5096.89142839,0.00035,15]
[326750715,1715305841855,-252.92464018,0.00035,15]
[326750816,1715305874880,584.46537033,9.999e-05,2]
[326750817,1715305875512,154.7215013,9.999e-05,2]
[326750818,1715305876754,194.1642929,9.999e-05,2]
[326750819,1715305881382,154.7215013,9.999e-05,2]
[326750820,1715305883466,1348.61247082,9.999e-05,2]
[326750821,1715305886239,492.04342234,9.999e-05,2]
[326750822,1715305897911,-415.0,0.00018,2]
[326750823,1715305914416,154.7215013,0.000137,2]
[326750824,1715305917355,154.7215013,9.999e-05,2]
[326750825,1715305924597,1681.2123987,0.00015,2]
[326750826,1715305926355,2104.72344677,0.00017998,2]
[326750827,1715305927344,171.97101442,0.000179,2]
[326750828,1715305928710,225.41112122,0.00017998,2]
[326750829,1715305928768,154.7215013,9.999e-05,2]
[326750830,1715305957744,578.17471515,0.00015,2]
[326750831,1715305957768,362.85034191,0.00015,2]
[326750832,1715305994669,527.71870107,9.999e-05,2]
[326750833,1715306019870,1579.16991007,9.999e-05,2]
[326750834,1715306208668,1494.22027638,9.999e-05,2]
[326750835,1715306223469,-179.589514,0.0001589,2]
[326750836,1715306228140,154.7215013,9.999e-05,2]
[326750837,1715306301713,412.83760204,9.999e-05,2]
[326750842,1715306665852,154.7215013,0.000136,2]
[326750843,1715306685825,224.29401393,0.000136,2]
[326750845,1715306787947,154.7215013,9.999e-05,2]
[326750846,1715306791936,194.1642929,9.999e-05,2]
[326750847,1715306797444,584.46537033,9.999e-05,2]
[326750849,1715306815132,-564.55666031,0.00019651,2]
[326750850,1715306815152,-154.7215013,0.00019652,2]
[326750851,1715306815173,-368.80425725,0.00019652,2]
[326750853,1715306848131,154.7215013,9.999e-05,2]
[326750854,1715307008550,-415.0,0.00016456,2]
[326750855,1715307033165,-4597.61005165,0.00016456,2]
[326750856,1715307033177,-194.1642929,0.00019643,2]
[326750857,1715307033186,-564.55666031,0.00019644,2]
[326750858,1715307033195,-332.4546819,0.00019662,2]
[326750859,1715307033205,-156.77709324,0.000208,2]
[326750860,1715307033216,-156.77709323,0.000208,2]
[326750861,1715307033225,-156.77709323,0.00020812,2]
[326750862,1715307033235,-27239.04986302,0.00020908,2]
[326750863,1715307033244,-587.78661984,0.00020909,2]
[326750864,1715307033253,-155.14059389,0.00020909,2]
[326750865,1715307033262,-168.22441991,0.0002091,2]
[326750866,1715307033271,-894.51331095,0.00020911,2]
[326750867,1715307033280,-2309.42996955,0.00020912,2]
[326750986,1715307044596,-2397.03538122,0.00019643,2]
[326750987,1715307044607,-197.33538641,0.00020911,2]
[326750988,1715307044617,-8378.34800373,0.00020912,2]
[326750989,1715307044627,-511.51087508,0.00020912,2]
[326750990,1715307044637,-154.7215013,0.00020912,2]
[326750991,1715307044647,-155.87496633,0.00020912,2]
[326750992,1715307044663,-166.666666,0.00021918,2]
[326750993,1715307044673,-166.666666,0.00022559,2]
[326750994,1715307044684,-166.666666,0.000232,2]
[326750995,1715307044694,-166.666666,0.00023841,2]
[326750996,1715307044703,-166.666666,0.00024482,2]
[326750997,1715307044713,-400.10978683,0.00025,2]
[326750998,1715307044723,-154.62584565,0.00025129,2]
[326750999,1715307044733,-154.62584565,0.00026531,2]
[326751000,1715307044744,-850.0,0.000266,2]
[326751001,1715307044754,-186.85286601,0.00027,2]
[326751002,1715307044763,-154.62584565,0.00027089,2]
[326751003,1715307044773,-154.62584565,0.00027162,2]
[326751004,1715307044783,-154.62584565,0.0002849,2]
[326751005,1715307044792,-150.0,0.00029557,5]
[326751006,1715307044802,-154.62584565,0.00029764,2]
[326751007,1715307044812,-500.0,0.0003,30]
[326751008,1715307044825,-154.62584565,0.00030891,7]
[326751009,1715307044835,-154.62584565,0.00031222,7]
[326751010,1715307044845,-154.62584565,0.00031478,7]
[326751011,1715307044855,-1037.07542149,0.0003275,3]
[326751012,1715307044865,-222.01653783,0.00033965,3]
[326751013,1715307044875,-4382.47401543,0.00035,30]
[326751019,1715307046938,-2834.33319289,0.00020912,2]
[326751029,1715307221847,206.84585849,9.999e-05,2]
[326751030,1715307697066,154.7215013,0.0001,2]
[326751041,1715307882849,718.98711623,9.999e-05,2]
[326751128,1715308238422,-150.0,0.000189,2]
[326751129,1715308238432,-319.7598723,0.00020164,2]
[326751130,1715308238441,-189.33595798,0.00020712,2]
[326751131,1715308238450,-625.80300972,0.00020911,2]
[326753768,1715308301903,901.50364212,0.00014,2]
[326753769,1715308301928,28.66889995,0.00014,2]
[326753771,1715308662245,364.48948305,0.00014,2]
[326753772,1715308678412,367.29263728,0.00014,2]
[326753773,1715308733221,-174.164322,0.0001589,2]
[326753774,1715308963750,-179.7059099,0.00016702,2]
[326753775,1715308991320,-252.8203537,0.00019637,2]
[326753776,1715308991342,-933.73553056,0.00019866,2]
[326753777,1715308991365,-905.4121725,0.00019912,2]
[326753778,1715309023995,235.14065243,0.00019912,2]
[326753779,1715309043921,233.95432016,0.00019912,2]
[326753780,1715309059921,233.95432016,0.00019912,2]
[326753781,1715309079949,233.95432016,0.00019912,2]
[326753782,1715309099923,233.95432016,0.00019912,2]
[326753783,1715309119932,233.95432016,0.00019912,2]
[326753784,1715309135943,233.95432016,0.00019912,2]
[326753785,1715309153959,233.95432016,0.00019912,2]
[326753786,1715309171940,233.95432016,0.00019912,2]
[326753787,1715309191946,233.95432016,0.00019912,2]
[326753788,1715309208536,179.589514,0.0001589,2]
[326753789,1715309211938,233.95432016,0.00019912,2]
[326753790,1715309229942,233.95432016,0.00019912,2]
[326753791,1715309251944,233.95432016,0.00019912,2]
[326753792,1715309269955,233.95432016,0.00019912,2]
[326753793,1715309291970,233.95432016,0.00019912,2]
[326753794,1715309311951,233.95432016,0.00019912,2]
[326753795,1715309331958,233.95432016,0.00019912,2]
[326753796,1715309349950,233.95432016,0.00019912,2]
[326753797,1715309367980,279.30822875,0.00019912,2]
[326753878,1715309442189,-683.5171273,0.00020164,2]
[326753879,1715309442198,-162.90594626,0.00020811,2]
[326753880,1715309442208,-880.55091997,0.00020812,2]
[326753881,1715309442217,-14507.00246974,0.00020911,2]
[326753882,1715309442226,-1653.62630381,0.00020912,2]
[326753883,1715309442235,-307.65873497,0.00020912,2]
[326753884,1715309442244,-242.82127596,0.00020912,2]
[326753885,1715309442254,-16721.54706974,0.00020912,2]
[326753886,1715309442263,-154.7215013,0.00020912,2]
[326753887,1715309442272,-818.05327069,0.00020912,2]
[326753888,1715309442281,-493.42513486,0.00020912,2]
[326753889,1715309442290,-426.92231864,0.00020913,2]
[326753890,1715309442299,-225.0,0.00021918,2]
[326753891,1715309442308,-166.666666,0.00021918,2]
[326753892,1715309442317,-1055.4901087,0.00021918,2]
[326753893,1715309442326,-159.4535182,0.00022,2]
[326753894,1715309442335,-2399.96021795,0.00022,2]
[326753895,1715309442344,-166.666666,0.00022431,2]
[326753896,1715309442353,-166.666666,0.00022944,2]
[326753897,1715309442362,-166.666666,0.00023456,2]
[326753898,1715309442371,-166.666666,0.00023969,2]
[326753899,1715309442379,-166.666666,0.00024482,2]
[326753900,1715309442388,-688.94687212,0.00024596,2]
[326753901,1715309442458,-171.01991208,0.000249,2]
[326753902,1715309442468,-329.24764654,0.00025,2]
[326753903,1715309442477,-623.44734361,0.00025826,2]
[326753904,1715309442485,-557.5,0.00026088,3]
[326753905,1715309442494,-169.25395516,0.00026505,2]
[326753906,1715309442503,-186.85286601,0.00027,2]
[326753907,1715309442512,-169.25395516,0.00027973,2]
[326753908,1715309442520,-221.20105551,0.00028,2]
[326753909,1715309442529,-171.01991208,0.000299,2]
[326753910,1715309442538,-380.99438207,0.0003,10]
[326753911,1715309442547,-557.5,0.0003108,5]
[326753912,1715309442556,-169.25395516,0.00033595,7]
[326753913,1715309442565,-177.61323027,0.00033965,3]
[326753914,1715309442574,-357.0,0.00034567,120]
[326753915,1715309442583,-171.01991208,0.00034899,2]
[326753916,1715309442591,-1000.02684859,0.00034986,7]
[326753917,1715309442600,-1000.02684859,0.00034986,7]
[326753918,1715309442609,-1000.02684859,0.00034986,7]
[326753919,1715309442618,-1000.02684859,0.00034986,7]
[326753920,1715309442627,-1000.02684859,0.00034986,7]
[326753921,1715309442635,-1000.02684859,0.00034986,7]
[326753922,1715309442644,-1000.02684859,0.00034986,7]
[326753923,1715309442653,-1000.02684859,0.00034986,7]
[326753924,1715309442662,-1000.02684859,0.00034986,7]
[326753925,1715309442671,-1000.02684859,0.00034986,7]
[326753926,1715309442680,-1000.02684859,0.00034986,7]
[326753927,1715309442689,-1000.02684859,0.00034986,7]
[326753928,1715309442699,-1000.02684859,0.00034986,7]
[326753929,1715309442708,-1000.02684859,0.00034986,7]
[326753930,1715309442718,-1000.02684859,0.00034986,7]
[326753931,1715309442727,-1000.02684859,0.00034986,7]
[326753932,1715309442736,-1000.02684859,0.00034986,7]
[326753933,1715309442746,-1000.02684859,0.00034986,7]
[326753934,1715309442759,-1000.02684859,0.00034986,7]
[326753935,1715309442769,-1000.02684859,0.00034986,7]
[326753936,1715309442778,-1000.02684859,0.00034986,7]
[326753937,1715309442787,-1000.02684859,0.00034986,7]
[326753938,1715309442797,-1000.02684859,0.00034986,7]
[326753939,1715309442807,-1000.02684859,0.00034986,7]
[326753940,1715309442816,-1000.02684859,0.00034986,7]
[326753941,1715309442825,-1000.02684859,0.00034986,7]
[326753942,1715309442846,-1000.02684859,0.00034986,7]
[326753943,1715309442863,-1000.02684859,0.00034986,7]
[326753944,1715309442882,-1000.02684859,0.00034986,7]
[326753945,1715309442901,-1000.02684859,0.00034986,7]
[326753946,1715309442922,-1000.02684859,0.00034986,7]
[326753947,1715309442937,-1000.02684859,0.00034986,7]
[326753948,1715309442956,-1000.02684859,0.00034986,7]
[326753949,1715309442971,-1000.02684859,0.00034986,7]
[326753950,1715309442989,-1000.02684859,0.00034986,7]
[326753951,1715309443007,-1000.02684859,0.00034986,7]
[326753952,1715309443028,-1000.02684859,0.00034986,7]
[326753953,1715309443040,-1000.02684859,0.00034986,7]
[326753954,1715309443059,-1000.02684859,0.00034986,7]
[326753955,1715309443074,-1000.02684859,0.00034986,7]
[326753956,1715309443090,-1000.02684859,0.00034986,7]
[326753957,1715309443104,-1000.02684859,0.00034986,7]
[326753958,1715309443119,-1000.02684859,0.00034986,7]
[326753959,1715309443134,-1000.02684859,0.00034986,7]
[326753960,1715309443149,-1000.02684859,0.00034986,7]
[326753961,1715309443164,-1000.02684859,0.00034986,7]
[326753962,1715309443178,-1000.02684859,0.00034986,7]
[326753963,1715309443192,-1000.02684859,0.00034986,7]
[326753964,1715309443206,-1000.02684859,0.00034986,7]
[326753965,1715309443220,-1000.02684859,0.00034986,7]
[326753966,1715309443234,-1000.02684859,0.00034986,7]
[326753967,1715309443248,-1000.02684859,0.00034986,7]
[326753968,1715309443263,-1000.02684859,0.00034986,7]
[326753969,1715309443277,-1000.02684859,0.00034986,7]
[326753976,1715309443290,-104.6406018,0.00034986,7]
[326754002,1715309443838,-895.38624679,0.00034986,7]
[326754003,1715309443848,-1000.02684859,0.00034986,7]
[326754004,1715309443857,-1000.02684859,0.00034986,7]
[326754005,1715309443866,-1000.02684859,0.00034986,7]
[326754006,1715309443874,-1000.02684859,0.00034986,7]
[326754007,1715309443883,-1000.02684859,0.00034986,7]
[326754008,1715309443892,-1000.02684859,0.00034986,7]
[326754009,1715309443901,-1000.02684859,0.00034986,7]
[326754010,1715309443912,-1000.02684859,0.00034986,7]
[326754011,1715309443921,-151.0,0.00034987,2]
[326754012,1715309443930,-151.0,0.00034987,2]
[326754013,1715309443938,-3394.407844,0.00034987,2]
[326754014,1715309443947,-3394.407844,0.00034987,2]
[326754015,1715309443956,-151.0,0.00034987,2]
[326754016,1715309443965,-151.0,0.00034987,2]
[326754017,1715309443975,-3394.407844,0.00034987,2]
[326754018,1715309443983,-3394.407844,0.00034987,2]
[326754020,1715309444000,-1502.449722,0.00034987,2]
[326754021,1715309444009,-1502.449722,0.00034987,2]
[326754022,1715309444021,-3000.0,0.00034987,2]
[326754023,1715309444031,-3000.0,0.00034987,2]
[326754024,1715309444040,-1502.449722,0.00034987,2]
[326754025,1715309444050,-1502.449722,0.00034987,2]
[326754026,1715309444060,-3000.0,0.00034987,2]
[326754027,1715309444070,-3000.0,0.00034987,2]
[326754028,1715309444079,-265.468248,0.00034987,2]
[326754029,1715309444088,-265.468248,0.00034987,2]
[326754030,1715309444098,-151.0,0.00034987,2]
[326754031,1715309444107,-151.0,0.00034987,2]
[326754032,1715309444118,-151.0,0.00034987,2]
[326754033,1715309444127,-265.468248,0.00034987,2]
[326754034,1715309444136,-265.468248,0.00034987,2]
[326754035,1715309444145,-151.0,0.00034987,2]
[326754036,1715309444154,-151.0,0.00034987,2]
[326754037,1715309444163,-151.0,0.00034987,2]
[326754038,1715309444172,-151.0,0.00034987,2]
[326754039,1715309444182,-151.0,0.00034987,2]
[326754040,1715309444193,-151.0,0.00034987,2]
[326754041,1715309444202,-151.0,0.00034988,2]
[326754042,1715309444211,-627.762331,0.00034988,2]
[326754043,1715309444220,-151.0,0.00034988,2]
[326754044,1715309444228,-627.762331,0.00034988,2]
[326754045,1715309444237,-386.618668,0.00034988,2]
[326754046,1715309444247,-386.618668,0.00034988,2]
[326754047,1715309444256,-305.002165,0.00034988,2]
[326754048,1715309444266,-305.002165,0.00034988,2]
[326754049,1715309444275,-1321.76756,0.00034988,2]
[326754050,1715309444284,-1321.76756,0.00034988,2]
[326754051,1715309444294,-500.0,0.00034988,2]
[326754052,1715309444303,-500.0,0.00034988,2]
[326754053,1715309444313,-500.0,0.00034988,2]
[326754054,1715309444322,-500.0,0.00034988,2]
[326754055,1715309444332,-500.0,0.00034988,2]
[326754056,1715309444341,-500.0,0.00034988,2]
[326754057,1715309444350,-500.0,0.00034988,2]
[326754058,1715309444359,-500.0,0.00034988,2]
[326754059,1715309444368,-500.0,0.00034988,2]
[326754060,1715309444377,-500.0,0.00034988,2]
[326754061,1715309444386,-500.0,0.00034988,2]
[326754062,1715309444396,-500.0,0.00034988,2]
[326754063,1715309444406,-500.0,0.00034988,2]
[326754064,1715309444415,-500.0,0.00034988,2]
[326754065,1715309444424,-500.0,0.00034988,2]
[326754066,1715309444434,-500.0,0.00034988,2]
[326754067,1715309444443,-565.63144936,0.00034988,2]
[326754068,1715309444452,-151.0,0.00034989,2]
[326754069,1715309444463,-315.771692,0.00034989,2]
[326754070,1715309444472,-315.771692,0.00034989,2]
[326754071,1715309444481,-151.0,0.00034989,2]
[326754072,1715309444490,-151.0,0.00034989,2]
[326754073,1715309444499,-151.0,0.00034989,2]
[326754074,1715309444508,-627.762331,0.00034989,2]
[326754075,1715309444518,-151.0,0.00034989,2]
[326754076,1715309444526,-627.762331,0.00034989,2]
[326754077,1715309444536,-386.618668,0.00034989,2]
[326754078,1715309444545,-386.618668,0.00034989,2]
[326754079,1715309444553,-305.002165,0.00034989,2]
[326754080,1715309444563,-305.002165,0.00034989,2]
[326754081,1715309444572,-1260.88093173,0.00034989,2]
[326754082,1715309444595,-0.01752407,0.00034989,2]
[326754084,1715309446348,-301.56839739,0.00034979,3]
[326754086,1715309446359,-8419.37160261,0.00034979,3]
[326754088,1715309446369,-60.8691042,0.00034989,2]
[326754090,1715309446378,-1321.76756,0.00034989,2]
[326754092,1715309446387,-876.125426,0.00034989,2]
[326754093,1715309446396,-876.125426,0.00034989,2]
[326754094,1715309446405,-198.887667,0.00034989,2]
[326754095,1715309446414,-198.887667,0.00034989,2]
[326754096,1715309446423,-578.837111,0.00034989,2]
[326754097,1715309446432,-578.837111,0.00034989,2]
[326754098,1715309446441,-303.94125,0.00034989,2]
[326754099,1715309446451,-303.94125,0.00034989,2]
[326754100,1715309446462,-303.94125,0.00034989,2]
[326754101,1715309446471,-303.94125,0.00034989,2]
[326754102,1715309446479,-151.0,0.00034989,2]
[326754103,1715309446488,-151.0,0.00034989,2]
[326754104,1715309446498,-151.0,0.00034989,2]
[326754105,1715309446507,-151.0,0.00034989,2]
[326754106,1715309446516,-151.0,0.00034989,2]
[326754107,1715309446526,-878.576489,0.00034989,2]
[326754108,1715309446535,-878.576489,0.00034989,2]
[326754109,1715309446544,-151.0,0.00034989,2]
[326754110,1715309446553,-151.0,0.00034989,2]
[326754111,1715309446562,-878.576489,0.00034989,2]
[326754112,1715309446571,-878.576489,0.00034989,2]
[326754113,1715309446580,-151.0,0.00034989,2]
[326754114,1715309446589,-151.0,0.00034989,2]
[326754115,1715309446598,-151.0,0.00034989,2]
[326754116,1715309446607,-245.464254,0.00034989,2]
[326754117,1715309446617,-151.0,0.00034989,2]
[326754118,1715309446627,-151.0,0.00034989,2]
[326754119,1715309446637,-151.0,0.00034989,2]
[326754120,1715309446646,-3394.407844,0.00034989,2]
[326754121,1715309446656,-3394.407844,0.00034989,2]
[326754122,1715309446665,-3394.407844,0.00034989,2]
[326754123,1715309446676,-151.0,0.00034989,2]
[326754124,1715309446685,-151.0,0.00034989,2]
[326754125,1715309446695,-152.024151,0.00034989,2]
[326754126,1715309446705,-3394.407844,0.00034989,2]
[326754127,1715309446716,-3394.407844,0.00034989,2]
[326754128,1715309446724,-3394.407844,0.00034989,2]
[326754129,1715309446734,-1502.449722,0.00034989,2]
[326754130,1715309446743,-1502.449722,0.00034989,2]
[326754131,1715309446757,-1502.449722,0.00034989,2]
[326754132,1715309446766,-1881.30228899,0.00034989,2]